Cogmind - Beta 10.2 @@@ ROGUE MODE // 2020.12.20 @ 18:49:24 Player: Buffy Result: Destroyed by Y-54 Guardian with Flak Gun Performance ------------- Evolutions (4) 2000 Regions Visited (11) 2200 Robots Destroyed (102) 510 Value Destroyed (3550) 3550 Prototype IDs (31) 620 Alien Tech Used (0) 0 Bonus (1613) 1613 TOTAL SCORE: 10493 Bonus ------- High Alert Combat Kills 208 Follower Combat Kills 405 Entered Garrisons 200 Used RIF Installer 500 Aligned with FarCom 300 Cogmind --------- Core Integrity 0/850 Matter 300/300 Energy 99/100 System Corruption 7% Temperature Cool (18) Movement Core (50) Location -6/Extension Parts ------- > --- POWER (1) -------- (None) > --- PROPULSION (3) --- (None) > --- UTILITY (9) ------ (None) > --- WEAPON (2) ------- (None) > --- INVENTORY (4) ---- High-capacity Storage Unit Flak Gun Proton Missile Launcher Improved Proton Missile Launcher Peak State ------------ > --- POWER ------------ Light Angular Momentum Engine > --- PROPULSION ------- Wheel Wheel Wheel > --- UTILITY ---------- Large Storage Unit High-capacity Storage Unit Advanced Targeting Computer Improved Transmission Jammer Cloak of Protection Layered Medium Armor Plating Relay Coupler [NC] Relay Coupler [Swarmer] Relay Coupler [Hunter] > --- WEAPON ----------- Remote Datajack Shock Maul > --- INVENTORY -------- Deuterium Engine Wheel Wheel Relay Coupler [NC] Relay Coupler [Brawler] Relay Coupler [Duelist] Relay Coupler [Hunter] Relay Coupler [Hunter] Force Rifle Improved Heavy Laser Heavy Plasma Cannon Minigun Flak Gun Improved Heavy Machine Gun Proton Missile Launcher Improved Proton Missile Launcher Remote Datajack [Rating: 56] Favorites ----------- Power Improved Deuterium Engine Engine Improved Deuterium Engine Power Core Nuclear Core Propulsion Wheel Wheel Wheel Utility Large Storage Unit Device Advanced Terrain Scanner Storage Large Storage Unit Processor Improved Terrain Scan Processor Hackware Relay Coupler [NC] Protection Propulsion Shielding Weapon Minigun Energy Gun Improved EM Shotgun Ballistic Gun Minigun Launcher Proton Missile Launcher Special Weapon Remote Datajack Impact Weapon Shock Maul Build | -11 -10 -10 -9 -9 -9 -8 -8 -7 -7 -6 -6 ------- Run | Scr Mat Min Mat Min Exi Min Mat Fac Gar Fac Ext Slots Evolved 8 | . . . 2 . . . 2 2 . 2 . Power . | . . . . . . . . . . . . Propulsion 1 | . . . . . . . . . . 1 . Utility 7 | . . . 2 . . . 2 2 . 1 . Weapon . | . . . . . . . . . . . . Parts Attached 120 | 7 4 8 9 4 1 4 14 2 20 35 12 Power 10 | 1 . 1 . 1 . . 3 . 1 1 2 Engine 8 | 1 . 1 . . . . 2 . 1 1 2 Core 2 | . . . . 1 . . 1 . . . . Reactor . | . . . . . . . . . . . . Propulsion 23 | 2 1 2 1 1 . . 1 . 2 10 3 Treads . | . . . . . . . . . . . . Leg . | . . . . . . . . . . . . Wheel 23 | 2 1 2 1 1 . . 1 . 2 10 3 Hover . | . . . . . . . . . . . . Flight . | . . . . . . . . . . . . Utility 33 | 2 2 . 4 . 1 . 5 2 5 8 4 Device 8 | . . . 2 . . . . 1 . 3 2 Storage 8 | 2 2 . . . 1 . . . 2 1 . Processor 3 | . . . 1 . . . . 1 1 . . Hackware 5 | . . . . . . . 1 . . 3 1 Protection 9 | . . . 1 . . . 4 . 2 1 1 Artifact . | . . . . . . . . . . . . Weapon 54 | 2 1 5 4 2 . 4 5 . 12 16 3 Energy Gun 20 | 1 1 3 2 . . 1 3 . 5 4 . Energy Cannon . | . . . . . . . . . . . . Ballistic Gun 13 | 1 . 2 2 1 . 1 1 . 2 3 . Ballistic Cannon . | . . . . . . . . . . . . Launcher 9 | . . . . . . 2 1 . 5 1 . Special Weapon 6 | . . . . 1 . . . . . 2 3 Impact Weapon 6 | . . . . . . . . . . 6 . Slashing Weapon . | . . . . . . . . . . . . Piercing Weapon . | . . . . . . . . . . . . Special Melee Weapon . | . . . . . . . . . . . . Unidentified Prototypes 4 | . . . 1 . . . . . . 3 . Parts Lost 39 | . . 3 2 1 . . 1 . 5 14 13 Power 3 | . . . . 1 . . . . . 1 1 Propulsion 20 | . . 2 1 . . . 1 . 2 8 6 Utility 11 | . . . 1 . . . . . 2 4 4 Weapon 5 | . . 1 . . . . . . 1 1 2 Highest Loss Streak 10 | . . 3 1 1 . . 1 . 3 9 10 Average Slot Usage (%) 91 | . 100 97 99 99 90 88 89 92 89 88 91 Engine 5 | . 14 14 11 . . . . 7 7 6 5 Core 2 | . . . . 10 11 11 8 . . . . Wheel 18 | . 28 25 21 22 22 22 18 15 13 19 19 Device 10 | . . . 9 11 11 11 9 15 8 11 12 Storage 14 | . 28 28 22 22 13 11 9 7 13 14 14 Processor 9 | . . . 11 11 11 11 9 15 15 7 5 Hackware 4 | . . . . . . . . . . 10 14 Protection 7 | . . . 1 . . . 17 15 13 3 4 Energy Gun 6 | . 14 13 11 11 11 9 8 7 5 3 . Ballistic Gun 6 | . 14 14 11 9 11 10 8 7 6 1 . Special Weapon 1 | . . . . 1 . . . . . 3 5 Impact Weapon 1 | . . . . . . . . . . 2 5 Naked Turns 9 | . . . . . . . . . . . 9 Heaviest Build 150 | 16 41 42 44 44 92 92 101 101 121 150 146 Greatest Support 32 | 32 32 32 32 28 28 28 28 22 28 32 30 Greatest Overweight (x) 11 | . 1 1 2 1 3 3 4 4 9 11 4 Average Overweight (x) 3 | . . 1 1 1 2 3 3 4 4 3 2 Largest Inventory Capacity 50 | 8 16 16 16 16 24 24 24 24 50 38 38 Average Capacity 25 | 6 15 16 16 16 22 24 24 24 28 31 22 Most Carried 30 | 5 15 16 16 16 23 24 24 24 30 30 29 Average Carried 22 | 1 12 14 14 15 19 23 23 22 28 27 20 Final Capacity 38 | 8 16 16 16 16 24 24 24 24 30 38 4 Final Carried 29 | 5 15 15 16 16 23 24 24 24 26 29 4 Class Distribution -------------------- 39% | Hauler-Skirmisher 27% | Bothacker-Mutant 18% | Mutant 12% | Hauler-Mutant Dominant Class ---------------- Mutant | -10/Materials Mutant | -10/Mines Mutant | -9/Materials Mutant | -9/Mines Hauler-Mutant | -9/Exiles Hauler-Skirmisher | -8/Mines Hauler-Skirmisher | -8/Materials Hauler-Skirmisher | -7/Factory Hauler-Skirmisher | -7/Garrison Bothacker-Mutant | -6/Factory Bothacker-Mutant | -6/Extension Resources | -11 -10 -10 -9 -9 -9 -8 -8 -7 -7 -6 -6 ----------- Run | Scr Mat Min Mat Min Exi Min Mat Fac Gar Fac Ext Matter Collected 2245 | 270 79 98 126 45 40 84 367 56 407 511 162 Remotely . | . . . . . . . . . . . . Salvage Created 4135 | 119 184 93 397 109 . 201 273 . 1167 1337 255 Parts 198 | 5 13 5 23 3 . 18 16 . 57 49 9 Haulers Intercepted 1 | . . . . . . . . . . 1 . Recyclers Shooed 4 | . 1 . 1 . . . 1 . . 1 . Parts Field Recycled . | . . . . . . . . . . . . Retrieved Matter . | . . . . . . . . . . . . Parts Self-Destructed . | . . . . . . . . . . . . Prevented . | . . . . . . . . . . . . Kills | -11 -10 -10 -9 -9 -9 -8 -8 -7 -7 -6 -6 ------- Run | Scr Mat Min Mat Min Exi Min Mat Fac Gar Fac Ext Combat Hostiles Destroyed 73 | . 6 2 6 2 . 9 6 . 27 11 4 Melee 4 | . . . . . . . . . . 2 2 Guns 36 | . 6 2 6 2 . . 4 . 12 4 . AOE 27 | . . . . . . 9 2 . 14 2 . Classes Destroyed 10 | 2 1 1 2 1 . 1 . . . 2 . Worker 14 | . . . . . . 1 . . . 13 . Builder 6 | . . . 2 . . . . . . 4 . Tunneler 2 | 1 . . . . . . . . . 1 . Hauler 1 | . . . . . . . . . . 1 . Recycler 6 | 1 1 . 1 . . . 1 . . 2 . Swarmer 24 | . 6 . . . . 4 3 . 9 2 . Grunt 34 | . . 2 4 1 . 5 . . 17 4 1 Brawler 1 | . . . . 1 . . . . . . . Sentry 9 | . . . 2 . . . 3 . 1 1 2 Programmer 4 | . . . . . . . . . . 4 . Savage 1 | . . . . . . . . . . . 1 Best Kill Streak 9 | 1 5 2 3 2 . 9 3 . 4 7 1 Combat Bots Only 9 | . 5 2 3 2 . 9 3 . 4 3 1 Max Kills in Single Turn 3 | 1 1 1 1 2 . 3 2 . 3 2 1 Gunslinging 1 | . . . . 1 . . . . . . . Exploded 3 | . . . . . . 3 2 . 3 2 . Melee 1 | . . . . . . . . . . 1 1 Uniques/NPCs Destroyed . | . . . . . . . . . . . . Combat | -11 -10 -10 -9 -9 -9 -8 -8 -7 -7 -6 -6 -------- Run | Scr Mat Min Mat Min Exi Min Mat Fac Gar Fac Ext Damage Taken 5873 | . 200 230 351 48 . 313 415 . 1151 1443 1722 Core 1379 | . 33 62 144 . . 82 15 . 186 210 647 Absorbed by Shields 38 | . . . . . . . . . 38 . . Core Remaining (%) 75 | 100 . 62 . . . 43 97 . 73 . . Volleys Fired 235 | 18 17 11 28 8 . 15 21 . 62 49 6 Largest 2 | 1 2 2 2 2 . 2 2 . 2 2 1 Hottest 105 | 40 60 60 88 100 . 70 86 . 88 105 30 Shots Fired 347 | 18 30 18 51 12 . 20 36 . 91 65 6 Gun 294 | 18 30 18 51 8 . 13 34 . 69 53 . Cannon . | . . . . . . . . . . . . Launcher 35 | . . . . . . 7 2 . 22 4 . Special 18 | . . . . 4 . . . . . 8 6 Kinetic 124 | . 13 11 23 4 . 5 15 . 38 15 . Thermal 138 | 18 . 5 20 4 . 3 19 . 31 38 . Explosive 7 | . . . . . . 7 . . . . . Electromagnetic 64 | . 17 2 8 4 . 5 2 . 22 4 . Robot Hit Streak 26 | 4 4 4 19 4 . 8 26 . 11 16 9 Robot Miss Streak 4 | 2 3 4 3 2 . 2 1 . 3 4 . Penetration Max . | . . . . . . . . . . . . Secondary Targets 3 | . . 1 . 1 . . . . 1 . . Max Gunslinging Chain 1 | . . 1 . 1 . . . . 1 . . Shots Hit Robots 293 | 11 16 11 35 7 . 16 28 . 48 92 29 Core Hits 138 | 3 8 5 13 3 . 22 10 . 45 25 4 Critical Hits 2 | . . . . . . 1 . . . 1 . Critical Kills . | . . . . . . . . . . . . Critical Parts Destroyed 2 | . . . . . . 1 . . . 1 . Melee Attacks 89 | . . . . . . . . . . 62 27 Impact 89 | . . . . . . . . . . 62 27 Slashing . | . . . . . . . . . . . . Piercing . | . . . . . . . . . . . . Sneak Attacks 17 | . . . . . . . . . . 12 5 Combat Hostiles 1 | . . . . . . . . . . . 1 Follow-up Attacks . | . . . . . . . . . . . . Damage Inflicted 8476 | 132 213 135 509 108 . 780 567 . 1711 3474 847 Guns 3333 | 132 213 135 509 108 . 157 496 . 629 954 . Cannons . | . . . . . . . . . . . . Explosions 2079 | . . . . . . 623 71 . 1082 303 . Melee 3049 | . . . . . . . . . . 2217 832 Ramming 15 | . . . . . . . . . . . 15 Kinetic 1102 | . 76 81 207 68 . 33 165 . 293 179 . Thermal 2049 | 132 . 54 209 . . 102 331 . 446 775 . Explosive 564 | . . . . . . 564 . . . . . Electromagnetic 1697 | . 137 . 93 40 . 81 71 . 972 303 . Impact 3049 | . . . . . . . . . . 2217 832 Slashing . | . . . . . . . . . . . . Piercing . | . . . . . . . . . . . . Highest Corruption 7 | . . . . 1 1 1 . . . 7 7 Average Corruption 4 | . . . . 1 1 1 . . . 4 7 Corruption Purged . | . . . . . . . . . . . . Effects 58 | . . . . 2 . . . . . 31 25 Message Errors 15 | . . . . 2 . . . . . 7 6 Matter Fused 15 | . . . . . . . . . . 8 7 Heat Flow Errors 5 | . . . . . . . . . . 2 3 Energy Discharges 4 | . . . . . . . . . . 3 1 Data Loss (minor) 6 | . . . . . . . . . . 2 4 Data Loss (major) 2 | . . . . . . . . . . 1 1 Misfires 1 | . . . . . . . . . . 1 . Targeting Errors 10 | . . . . . . . . . . 7 3 Overload Shots . | . . . . . . . . . . . . Overflow Damage 1108 | . . . . . . 6 4 . 14 918 166 Projectiles 47 | . . . . . . . . . . . 47 Explosions 24 | . . . . . . 6 4 . 14 . . Melee 1037 | . . . . . . . . . . 918 119 Knockbacks 18 | . . . . . . . . . . 13 5 Impact 17 | . . . . . . . . . . 13 4 Kinetic . | . . . . . . . . . . . . Secondary 1 | . . . . . . . . . . . 1 Self-Inflicted Damage 106 | . . . . . . . . . 99 . 7 Shots 5 | . . . . . . . . . 5 . . Rammed 1 | . . . . . . . . . . . 1 Targets Rammed 1 | . . . . . . . . . . . 1 Kicked . | . . . . . . . . . . . . Crushed . | . . . . . . . . . . . . Highest Temperature 227 | . . 63 210 33 . 104 209 . 201 227 223 Average Temperature 52 | . . 30 68 16 . 34 83 . 47 30 91 Received Heat Transfer 1401 | . . 135 180 12 . 126 81 . 261 198 408 Siege Activations . | . . . . . . . . . . . . Robots Corrupted 2 | . . . . . . . . . 1 1 . Combat Hostiles 2 | . . . . . . . . . 1 1 . Parts Fried 25 | . 2 . . . . 1 1 . 2 16 3 Impact Corruptions 40 | . . . . . . . . . . 35 5 Robots Melted . | . . . . . . . . . . . . Combat Hostiles . | . . . . . . . . . . . . Parts Melted 6 | . . . . . . . 3 . 1 2 . Heat Transferred 3631 | 300 . 125 518 . . 161 629 . 788 1110 . Parts Sabotaged . | . . . . . . . . . . . . Parts Stolen . | . . . . . . . . . . . . Parts Stripped . | . . . . . . . . . . . . Power Chain Reactions 5 | . . . . . . 1 . . 4 . . Missiles Intercepted . | . . . . . . . . . . . . Alert | -11 -10 -10 -9 -9 -9 -8 -8 -7 -7 -6 -6 ------- Run | Scr Mat Min Mat Min Exi Min Mat Fac Gar Fac Ext Peak Influence 986 | 10 207 130 265 50 . 253 156 27 986 562 190 Initial 517 | . 6 80 50 . . . 98 23 18 517 88 Average 222 | 2 68 125 154 43 . 105 89 25 517 287 114 Maximum Alert Level 3 | . 1 . 1 . . 1 . . 3 2 . Low Security (%) 66 | 100 97 100 65 100 . 64 100 100 21 42 100 Level 1 14 | . 2 . 34 . . 35 . . 14 28 . Level 2 14 | . . . . . . . . . 34 28 . Level 3 5 | . . . . . . . . . 30 . . Level 4 . | . . . . . . . . . . . . Level 5 . | . . . . . . . . . . . . High Security . | . . . . . . . . . . . . Max Security . | . . . . . . . . . . . . Squads Dispatched 12 | . . 1 1 . . 1 . . . 8 1 Investigation 2 | . . 1 . . . . . . . 1 . Extermination 4 | . . . . . . . . . . 4 . Reinforcement 6 | . . . 1 . . 1 . . . 3 1 Assault . | . . . . . . . . . . . . Garrison . | . . . . . . . . . . . . Intercept . | . . . . . . . . . . . . Construction Impeded 2 | . . . . . . 1 . . . 1 . Haulers Reinforced 1 | . . . . . . . . . . 1 . Stealth | -11 -10 -10 -9 -9 -9 -8 -8 -7 -7 -6 -6 --------- Run | Scr Mat Min Mat Min Exi Min Mat Fac Gar Fac Ext Distress Signals 8 | . 3 . . . . . 2 . . 2 1 Communications Jammed 42 | . . . . . . . . . . . 42 Distress Signals 42 | . . . . . . . . . . . 42 Times Spotted 122 | . 10 2 11 3 . 10 12 . 26 25 23 Peak Tracking Total 7 | . 5 2 3 3 . 7 4 . 4 4 6 Tactical Retreats 8 | . . . 1 . . 1 . . 3 3 . Traps | -11 -10 -10 -9 -9 -9 -8 -8 -7 -7 -6 -6 ------- Run | Scr Mat Min Mat Min Exi Min Mat Fac Gar Fac Ext Traps Triggered 26 | . 1 . . . . . 2 . 14 2 7 Indirectly 9 | . . . . . . . . . 9 . . Trap Hack Attempts . | . . . . . . . . . . . . Triggered . | . . . . . . . . . . . . Disarmed . | . . . . . . . . . . . . Reprogrammed . | . . . . . . . . . . . . Reused . | . . . . . . . . . . . . Traps Extracted . | . . . . . . . . . . . . Installed . | . . . . . . . . . . . . Triggered . | . . . . . . . . . . . . Machines | -11 -10 -10 -9 -9 -9 -8 -8 -7 -7 -6 -6 ---------- Run | Scr Mat Min Mat Min Exi Min Mat Fac Gar Fac Ext Machines Disabled 12 | . . 1 . . . . . . 5 6 . Max in Single Turn 2 | . . 1 . . . . . . 2 1 . Garrison Relay 3 | . . . . . . . . . 3 . . Machines Sabotaged . | . . . . . . . . . . . . Garrisons Compromised . | . . . . . . . . . . . . Overloaded Fab Kills . | . . . . . . . . . . . . Fab Network Shutdowns . | . . . . . . . . . . . . Hacking | -11 -10 -10 -9 -9 -9 -8 -8 -7 -7 -6 -6 --------- Run | Scr Mat Min Mat Min Exi Min Mat Fac Gar Fac Ext Machines Accessed 30 | . 2 1 4 . 2 1 7 3 . 6 4 Terminals 18 | . 2 . 4 . . 1 5 . . 2 4 Fabricators 3 | . . . . . . . . 1 . 2 . Repair Stations 1 | . . . . . . . . . . 1 . Recycling Units 3 | . . . . . . . 1 1 . 1 . Scanalyzers 1 | . . . . . . . 1 . . . . Garrison Access 1 | . . . . . . . . 1 . . . Total Hacks 81 | . 6 1 7 . 2 2 27 7 . 16 13 Successful 39 | . 4 1 3 . 2 1 17 3 . 7 1 Failed 42 | . 2 . 4 . . 1 10 4 . 9 12 Catastrophic 8 | . . . 1 . . 1 3 . . 1 2 Database Lockouts . | . . . . . . . . . . . . Manual 22 | . 2 . 3 . 1 1 11 . . 4 . Terminals 50 | . 6 . 7 . . 2 14 . . 8 13 Fabricators 7 | . . . . . . . . 2 . 5 . Repair Stations 1 | . . . . . . . . . . 1 . Recycling Units 7 | . . . . . . . 1 4 . 2 . Scanalyzers 12 | . . . . . . . 12 . . . . Garrison Access 1 | . . . . . . . . 1 . . . Terminal Hacks 17 | . 3 1 3 . 2 1 3 . . 3 1 Record 1 | . . . . . 1 . . . . . . Prototype ID Bank 2 | . 1 . 1 . . . . . . . . Open Door 2 | . . 1 . . . . . . . . 1 Branch Access Points 2 | . . . 1 . . . . . . 1 . Garrison Index 1 | . . . . . . . 1 . . . . Alert Level 1 | . . . . . . . 1 . . . . Unreport Threat 3 | . . . 1 . . . . . . 2 . Locate Traps 3 | . 2 . . . . . 1 . . . . Zone Layout 1 | . . . . . . 1 . . . . . EX-Prototype ID Bank 1 | . . . . . 1 . . . . . . Fabricator Hacks 3 | . . . . . . . . 1 . 2 . Load Schematic 3 | . . . . . . . . 1 . 2 . Repair Station Hacks . | . . . . . . . . . . . . Recycling Unit Hacks 4 | . . . . . . . 1 1 . 2 . Report Inventory 4 | . . . . . . . 1 1 . 2 . Scanalyzer 11 | . . . . . . . 11 . . . . Insert Component 5 | . . . . . . . 5 . . . . Analyze 6 | . . . . . . . 6 . . . . Garrison Access Hacks 1 | . . . . . . . . 1 . . . Unlock Access 1 | . . . . . . . . 1 . . . Unauthorized Hacks 3 | . 1 . . . . . 2 . . . . Terminals 3 | . 1 . . . . . 2 . . . . Botnet 3 | . 1 . . . . . 2 . . . . Fabricators . | . . . . . . . . . . . . Repair Stations . | . . . . . . . . . . . . Recycling Units . | . . . . . . . . . . . . Scanalyzers . | . . . . . . . . . . . . Garrison Access . | . . . . . . . . . . . . Data Cores Recovered . | . . . . . . . . . . . . Used . | . . . . . . . . . . . . Hacking Detections 22 | . 2 . 3 . . . 6 2 . 6 3 Full Trace Events 2 | . . . . . . . 1 . . 1 . Feedback Events . | . . . . . . . . . . . . Feedback Blocked . | . . . . . . . . . . . . Robot Schematics Acquired . | . . . . . . . . . . . . Robots Built . | . . . . . . . . . . . . Matter . | . . . . . . . . . . . . Time . | . . . . . . . . . . . . Total Robot Build Rating . | . . . . . . . . . . . . Part Schematics Acquired 4 | . . . . . . . 4 . . . . Parts Built . | . . . . . . . . . . . . Matter . | . . . . . . . . . . . . Time . | . . . . . . . . . . . . Total Part Build Rating . | . . . . . . . . . . . . Parts Repaired . | . . . . . . . . . . . . Time . | . . . . . . . . . . . . Parts Recycled . | . . . . . . . . . . . . Recycled Matter . | . . . . . . . . . . . . Retrieved Matter . | . . . . . . . . . . . . Retrieved Components . | . . . . . . . . . . . . Parts Scanalyzed 4 | . . . . . . . 4 . . . . Part Schematics Acquired 4 | . . . . . . . 4 . . . . Parts Damaged . | . . . . . . . . . . . . Bothacking | -11 -10 -10 -9 -9 -9 -8 -8 -7 -7 -6 -6 ------------ Run | Scr Mat Min Mat Min Exi Min Mat Fac Gar Fac Ext Used RIF Installer 1 | . . . . . . . . . 1 . . Robots Hacked 10 | . . . . . . . . . . 7 3 Non-combat 6 | . . . . . . . . . . 4 2 Combat 4 | . . . . . . . . . . 3 1 Robot Hacks Applied 12 | . . . . . . . . . . 7 5 no_distress 1 | . . . . . . . . . . . 1 find_chute 2 | . . . . . . . . . . 2 . map_walls 2 | . . . . . . . . . . 1 1 ignore_parts 3 | . . . . . . . . . . 1 2 amplify_resonance 2 | . . . . . . . . . . 1 1 streamctrl_high 2 | . . . . . . . . . . 2 . Relay Couplers Released 11 | . . . . . . . . . 11 . . Machine Destruction 11 | . . . . . . . . . 11 . . Attached 4 | . . . . . . . . . . 3 1 Robots Rewired 10 | . . . . . . . . . . . 10 Allies Hacked . | . . . . . . . . . . . . Hacks Repelled . | . . . . . . . . . . . . Allies | -11 -10 -10 -9 -9 -9 -8 -8 -7 -7 -6 -6 -------- Run | Scr Mat Min Mat Min Exi Min Mat Fac Gar Fac Ext Total Allies 14 | . . . . 1 . . . . . 2 11 Largest Group 6 | . . . . 1 . . . . . 1 6 Highest-Rated Group 162 | . . . . 31 . . . . . 32 162 Highest-Rated Ally 32 | . . . . 31 . . . . . 32 31 Total Orders . | . . . . . . . . . . . . Ally Attacks 65 | . . . . 2 . . . . . 8 55 Total Damage 1723 | . . . . 42 . . . . . 486 1195 Kills 13 | . . . . . . . . . . 3 10 Allies Corrupted 1 | . . . . . . . . . . . 1 Allies Melted . | . . . . . . . . . . . . Intel | -11 -10 -10 -9 -9 -9 -8 -8 -7 -7 -6 -6 ------- Run | Scr Mat Min Mat Min Exi Min Mat Fac Gar Fac Ext Robot Analysis Total . | . . . . . . . . . . . . Derelict Logs Recovered 1 | . . . . 1 . . . . . . . Drone Launches . | . . . . . . . . . . . . Drone Recoveries . | . . . . . . . . . . . . Exploration | -11 -10 -10 -9 -9 -9 -8 -8 -7 -7 -6 -6 ------------- Run | Scr Mat Min Mat Min Exi Min Mat Fac Gar Fac Ext Turns Passed 6500 | 115 231 194 437 238 373 168 880 372 1071 1764 657 Spaces Moved 4108 | 65 154 133 307 196 295 99 540 294 594 1095 336 Core 10 | 2 . . . . . . . . . . 8 Treads . | . . . . . . . . . . . . Legs . | . . . . . . . . . . . . Wheels 4098 | 63 154 133 307 196 295 99 540 294 594 1095 328 Hover . | . . . . . . . . . . . . Flight . | . . . . . . . . . . . . Fastest Speed 50 | 50 100 100 100 100 95 125 125 125 125 110 50 Average Speed 117 | 98 104 109 102 103 119 125 125 125 137 114 104 Slowest Speed 190 | 100 110 110 120 105 125 125 125 125 180 190 120 Overloaded Moves . | . . . . . . . . . . . . Propulsion Burnouts . | . . . . . . . . . . . . Robots Hopped . | . . . . . . . . . . . . Cave-ins Triggered . | . . . . . . . . . . . . Exploration Rate (%) 36 | 5 31 28 42 46 64 27 38 8 84 26 43 Regions Visited 11 Branch Regions 5 Pre-discovered Areas 3 | . . . . 2 1 . . . . . . Known Exits Taken 3 | . . . 1 . . . . 1 . 1 . Unknown Exits Taken 7 | 1 1 1 . 1 1 1 1 . . . . Scrap Searched 1 | . . 1 . . . . . . . . . Spaces Dug 15 | . . . . 4 . . . . 5 6 . Terrain Destroyed 64 | . . . . 4 . 44 . . 10 6 . Melee 6 | . . . . . . . . . . 6 . Projectile 4 | . . . . 4 . . . . . . . AOE 54 | . . . . . . 44 . . 10 . . Terrain Rammed . | . . . . . . . . . . . . Walls Destroyed . | . . . . . . . . . . . . Machines Disabled . | . . . . . . . . . . . . Actions | -11 -10 -10 -9 -9 -9 -8 -8 -7 -7 -6 -6 --------- Run | Scr Mat Min Mat Min Exi Min Mat Fac Gar Fac Ext Total 5302 | 94 194 163 379 211 315 122 715 299 758 1449 603 Wait 410 | . 6 1 17 2 . 4 108 . 20 169 83 Move 4097 | 64 153 132 306 195 294 98 539 293 593 1094 336 Hop . | . . . . . . . . . . . . Pick Up 119 | 5 10 7 9 1 18 1 16 3 16 22 11 Fast Attach 33 | 7 1 . 4 1 1 . 4 . 1 11 3 Attach 44 | . 1 5 4 1 . . 4 2 6 12 9 Detach 6 | . 1 . 1 . . . . . . 3 1 Swap 43 | . 2 3 1 2 . 4 6 . 13 12 . Drop 71 | . 3 4 9 1 2 . 17 1 9 15 10 Fire 235 | 18 17 11 28 8 . 15 21 . 62 49 6 Melee 89 | . . . . . . . . . . 62 27 Ram 1 | . . . . . . . . . . . 1 Kick . | . . . . . . . . . . . . Crush . | . . . . . . . . . . . . Escape Stasis 94 | . . . . . . . . . 38 . 56 Rewire 60 | . . . . . . . . . . . 60 Trap . | . . . . . . . . . . . . Miscellaneous . | . . . . . . . . . . . . Route ------- -11/Scrapyard -10/Materials -10/Mines -9/Materials (discovered 4 exits: *Mat x2 / *Min x2) -9/Mines -9/Exiles -8/Mines -8/Materials (discovered 3 exits: *Fac / [*Sto x2]) -7/Factory -7/Garrison (discovered 3 exits: *Fac x3) -6/Factory (discovered 4 exits: Low x2 / *Ext x2) -6/Extension History --------- Turn | Location | Event 13 | -11/Scrapyard | Discovered new exit (range 15) 116 | -11/Scrapyard | Entered Materials 315 | -10/Materials | Build established: Mutant 317 | -10/Materials | Discovered new exit (range 9) 347 | -10/Materials | Entered Mines 398 | -10/Mines | Lost 3 parts (2n1w) 466 | -10/Mines | Met a Derelict shopkeep closing up shop 510 | -10/Mines | Discovered new exit (range 9) 541 | -10/Mines | Entered Materials 541 | -9/Materials | Evolved 2 slots: Utility x2 844 | -9/Materials | Discovered new exit (range 14) 871 | -9/Materials | Identified exit to Mines 929 | -9/Materials | Discovered new exit (range 11) 978 | -9/Materials | Entered Mines 989 | -9/Mines | Escorted by a lone wolf Derelict 1009 | -9/Mines | Learned location of Storage (-8) 1112 | -9/Mines | Assembled infested the area 1126 | -9/Mines | Discovered new exit (range 7) 1209 | -9/Mines | Deemed a non-threat by the Exiles lab entrance 1216 | -9/Mines | Entered Exiles 1243 | -9/Exiles | Met 8R-AWN 1261 | -9/Exiles | Met EX-HEX 1383 | -9/Exiles | Met EX-BIN 1398 | -9/Exiles | Aligned with FarCom system 1399 | -9/Exiles | Given EX-Vault access code 1431 | -9/Exiles | Opened EX-Vault 1441 | -9/Exiles | Found Cloak of Protection 1465 | -9/Exiles | Warned to stay clear of 0b10 Research branches 1502 | -9/Exiles | Met EX-DEC 1508 | -9/Exiles | Learned location of Zion (-7) 1574 | -9/Exiles | Discovered new exit (range 12) 1589 | -9/Exiles | Left Exiles lab with Cloak of Protection 1589 | -9/Exiles | Entered Mines 1690 | -8/Mines | Core integrity fell below 50% 1720 | -8/Mines | Destroyed 9 combat bots 1733 | -8/Mines | Discovered new exit (range 11) 1757 | -8/Mines | Entered Materials 1757 | -8/Materials | Evolved 2 slots: Utility x2 1834 | -8/Materials | Discovered new exit (range 19) 1969 | -8/Materials | Discovered new exit (range 20) 2385 | -8/Materials | Build established: Hauler-Skirmisher 2462 | -8/Materials | Discovered new exit (range 13) 2637 | -8/Materials | Entered Factory 2637 | -7/Factory | Evolved 2 slots: Utility x2 2794 | -7/Factory | Identified exit to Garrison 3009 | -7/Factory | Entered Garrison 3013 | -7/Garrison | Triggered checkpoint 3147 | -7/Garrison | Triggered checkpoint 3191 | -7/Garrison | Garrison Relay disabled 3258 | -7/Garrison | Triggered checkpoint 3332 | -7/Garrison | Discovered new exit (range 9) 3358 | -7/Garrison | Triggered checkpoint 3388 | -7/Garrison | Garrison Relay disabled 3483 | -7/Garrison | Triggered checkpoint 3608 | -7/Garrison | Discovered new exit (range 14) 3798 | -7/Garrison | Triggered checkpoint 3814 | -7/Garrison | Garrison Relay disabled 3910 | -7/Garrison | Triggered checkpoint 3952 | -7/Garrison | Lost 3 parts (1n1u1w) 4049 | -7/Garrison | Discovered new exit (range 12) 4071 | -7/Garrison | Installed Relay Interface Framework 4080 | -7/Garrison | Entered Factory 4080 | -6/Factory | Evolved 2 slots: Propulsion x1, Utility x1 4743 | -6/Factory | Lost 3 parts (2n1u) 4749 | -6/Factory | Build established: Bothacker-Mutant 4815 | -6/Factory | Identified exit to Lower Caves 4815 | -6/Factory | Identified exit to Extension 5225 | -6/Factory | Lost 9 parts (1p5n2u1w) 5844 | -6/Factory | Entered Extension 5901 | -6/Extension | Rescued a captive Derelict 6461 | -6/Extension | Spotted B-75 Beast 6480 | -6/Extension | Spotted B-75 Beast 6492 | -6/Extension | Released all parts (6) 6494 | -6/Extension | Core integrity fell below 50% 6499 | -6/Extension | Core integrity fell below 20% 6501 | -6/Extension | Destroyed by Y-54 Guardian with Flak Gun Last Messages --------------- 06485_ Remote Datajack destroyed. 06485_ Wheel destroyed. 06485_ U-05 Engineer lays Concrete. 06488_ Imp. Deuterium Engine destroyed. 06488_ Y8-3S0(l) destroyed. 06489_ Shock Maul destroyed. 06490_ Wheel destroyed. 06492_ Released Relay Coupler [Hunter]. 06492_ Released Hcp. Storage Unit. 06492_ Released Relay Coupler [NC]. 06492_ Released Lrg. Storage Unit. 06492_ Released Adv. Targeting Computer. 06492_ Released Imp. Transmission Jammer. 06492_ Dropped Relay Coupler [Hunter]. 06493_ Acquired Imp. Proton Missile Launcher. 06495_ U-05 Engineer lays Concrete. 06496_ Machine disabled. 06497_ Dropped Minigun. 06497_ Acquired Hcp. Storage Unit. 06499_ U-05 Engineer destroyed. Map ----- +----------------------------------------------------+ | #????????????????????????????????????? | | ^ #????????????????????????????????????? | | ""T"" #????????????????????????????????????? | | """"" #????????????????????????????????????? | | #????????????????????????????????????? | | % #????????????????????????????????????? | | ### #######%#????????????????????????????????????? | | ??# T#????#*#????????????????????????????????????? | | ??#"##????#%#????????????????????????????????????? | | ??????????#=#????????? ??????????????????????????? | | ??????????#=#????????? ??????????????????????????? | | ??????????#%#????????? #?????????????????????????? | | ??????????#=#????????# #?????????????????????????? | | ??????????#%#????????# #?????????????????????????? | | ??????????#=#????????# #?????????????????????????? | | ??????????#w#????????# ?????????????????????????? | | ??????????#!#????????# #?????????????????????????? | | ??????????# #?????#### #?????????????????????????? | | ??????????# #######;## #?????????????????????????? | | ????????### ;;# ## ;## ###???????????????????????? | | ????????#"" " Y Y "" ""#???????????????????????? | | ????????# !!! " #???????????????????????? | | ????????# % ][!! #???????????????????????? | | ????????# u [! [! #???????????????????????? | | ????????# |[! #########???????????????? | | ???? * @ ????????? | | ???? |%= ????????? | | ??? ! ????????? | | ? k u ?????????? | | BBt k t t t t ?????????? | | ######### BB BB ##############??????????? | | ????????# BB #???????????????????????? | | ????????# #???????????????????????? | | ????????# #???????????????????????? | | ????????# #???????????????????????? | | ????????######T#"""#######???????????????????????? | | ?????????????##??????????????????????????????????? | | ?????????????????????????????????????????????????? | | | | | | | | | | | | | | | | | | | | | | | | | +----------------------------------------------------+ Best States ------------- Heat Dissipation 51 Energy Generation 18 Energy Capacity 290 Matter Stores 300 Matter Capacity 300 Sight Range 16 Terrain Scan Range 20 Terrain Scan Density 110 Jamming Range 12 Cloak Strength 5 Armor Coverage 225 Resistance: EM 15 Propulsion Shielding 33 Evasion (%) 50 Targeting Accuracy 8 Offensive Hacking 10 Relay Coupler Types 73 Relay Coupler Value 3 Item Schematics ----------------- Humpback | -8/Materials | Scanalyzed Lrg. Storage Unit | -8/Materials | Scanalyzed Proton Missile Launcher | -8/Materials | Scanalyzed Adv. Beam Rifle | -8/Materials | Scanalyzed Robot Schematics ------------------ None Fabricated ------------ Nothing Alien Tech Used ----------------- None Achievements -------------- Omniscient Cartographer Packrat Part-time Excavator Challenges ------------ None Game ------ Seed ActuatorSiegeBattery Manual? 0 Play Time 02:36:30 Cumulative 112.8 hours Start 2020.12.20 @ 12:37:26 End 2020.12.20 @ 18:49:24 Sessions 7 Manual Loads 0 Difficulty Rogue Special Mode None Game No. 35 Rogue 32 Adventurer 1 Explorer 2 Win Type - Total 0 Types 0/0/0/0/0/0/0/0/0 Lore% 35 Gallery% 48 Achievement% 37 Wizard Run 0 Options --------- ASCII 0 Keyboard 0 Movement Mouse Keybinds 0 Fullscreen 1 Font 18/SmallcapsGlow Map View 76x50 Tactical HUD 1 Map Filters NONE Filters NONE Steam 0 RUN: b625a10c-59ee-4376-9f1e-cab38ad92aa0